fUSD/lending_fUSD_20250806
["ID","MTS","AMOUNT","RATE_DAILY","PERIOD"]
[377621799,1754463047944,-680.68,0.00035616,14]
[377621800,1754463047953,-181.4670699,0.00035616,14]
[377621801,1754463047963,-500.0,0.00035616,14]
[377621802,1754463047972,-773.79,0.00035616,14]
[377621803,1754463047981,-500.0,0.00035616,14]
[377621804,1754463047990,-400.0,0.00035616,14]
[377621805,1754463047999,-500.0,0.00035616,14]
[377621806,1754463048008,-406.28855887,0.00035616,14]
[377621807,1754463048018,-1545.22,0.00035616,14]
[377621808,1754463048027,-152.37491,0.00035616,7]
[377621809,1754463048036,-400.0,0.00035616,14]
[377621810,1754463048045,-400.0,0.00035616,14]
[377621811,1754463048055,-400.0,0.00035616,14]
[377621812,1754463048064,-457.62,0.00035616,14]
[377621813,1754463048073,-938.06,0.00035616,14]
[377621814,1754463048083,-11687.81,0.00035616,14]
[377621815,1754463048092,-780.71,0.00035616,14]
[377621816,1754463048101,-400.0,0.00035616,14]
[377621817,1754463048111,-400.0,0.00035616,14]
[377621818,1754463048120,-400.0,0.00035616,14]
[377621819,1754463048130,-400.0,0.00035616,14]
[377621820,1754463048139,-400.0,0.00035616,14]
[377621821,1754463048148,-1870.72,0.00035616,14]
[377621822,1754463048157,-419.34,0.00035616,14]
[377621823,1754463048167,-400.0,0.00035616,14]
[377621824,1754463048176,-400.0,0.00035616,14]
[377621825,1754463048185,-595.05,0.00035616,14]
[377621826,1754463048194,-400.0,0.00035616,14]
[377621827,1754463048203,-401.80295837,0.00035616,14]
[377621828,1754463048212,-400.0,0.00035616,14]
[377621829,1754463048222,-400.0,0.00035616,14]
[377621830,1754463048231,-2036.36,0.00035616,14]
[377621831,1754463048240,-151.0,0.00035616,7]
[377621832,1754463048250,-151.0,0.00035616,7]
[377621833,1754463048259,-522.84,0.00035616,14]
[377621834,1754463048268,-574.65,0.00035616,14]
[377621835,1754463048278,-401.06334603,0.00035616,14]
[377621836,1754463048287,-400.0,0.00035616,2]
[377621837,1754463048296,-1165.47,0.00035616,14]
[377621838,1754463048305,-400.0,0.00035616,14]
[377621839,1754463048315,-1951.7,0.00035616,14]
[377621840,1754463048324,-513.64,0.00035616,14]
[377621841,1754463048334,-400.0,0.00035616,14]
[377621842,1754463048343,-983.29,0.00035616,14]
[377621843,1754463048354,-400.0,0.00035616,14]
[377621844,1754463048363,-400.0,0.00035616,14]
[377621845,1754463048373,-400.0,0.00035616,14]
[377621846,1754463048383,-400.0,0.00035616,14]
[377621847,1754463048393,-1035.39,0.00035616,14]
[377621848,1754463048403,-753.66,0.00035616,14]
[377621849,1754463048412,-1430.36,0.00035616,14]
[377621850,1754463048421,-2356.84,0.00035616,14]
[377621851,1754463048430,-400.0,0.00035616,14]
[377621852,1754463048440,-760.82,0.00035616,14]
[377621853,1754463048449,-400.0,0.00035616,14]
[377621854,1754463048457,-432.77,0.00035616,14]
[377621855,1754463048466,-400.0,0.00035616,14]
[377621856,1754463048475,-507.03,0.00035616,14]
[377621857,1754463048484,-400.0,0.00035616,14]
[377621858,1754463048493,-459.07,0.00035616,14]
[377621859,1754463048502,-2755.35,0.00035616,2]
[377621860,1754463048511,-400.0,0.00035616,14]
[377621861,1754463048520,-400.0,0.00035616,14]
[377621862,1754463048529,-1215.36,0.00035616,14]
[377621863,1754463048538,-404.38002614,0.00035616,14]
[377621864,1754463048546,-902.7,0.00035616,14]
[377621865,1754463048556,-1289.48,0.00035616,14]
[377621866,1754463048564,-151.0,0.00035616,7]
[377621867,1754463048573,-400.0,0.00035616,14]
[377621868,1754463048584,-151.0,0.00035616,7]
[377621869,1754463048593,-400.0,0.00035616,14]
[377621870,1754463048602,-447.56,0.00035616,14]
[377621871,1754463048611,-400.0,0.00035616,14]
[377621872,1754463048621,-400.0,0.00035616,14]
[377621873,1754463048630,-400.0,0.00035616,14]
[377621874,1754463048638,-655.96,0.00035616,14]
[377621875,1754463048648,-2229.46,0.00035616,14]
[377621876,1754463048656,-400.0,0.00035616,14]
[377621877,1754463048665,-151.0,0.00035616,7]
[377621878,1754463048674,-1229.99,0.00035616,14]
[377621879,1754463048682,-400.0,0.00035616,14]
[377621880,1754463048691,-400.0,0.00035616,14]
[377621881,1754463048699,-400.0,0.00035616,14]
[377621882,1754463048707,-151.0,0.00035616,7]
[377621883,1754463048715,-1229.99,0.00035616,14]
[377621884,1754463048723,-400.0,0.00035616,14]
[377621885,1754463048732,-1229.99,0.00035616,14]
[377621886,1754463048741,-1229.99,0.00035616,14]
[377621887,1754463048749,-1229.99,0.00035616,14]
[377621888,1754463048759,-1229.99,0.00035616,14]
[377621889,1754463048768,-1229.99,0.00035616,14]
[377621890,1754463048780,-1229.99,0.00035616,14]
[377621891,1754463048789,-1229.99,0.00035616,14]
[377621892,1754463048798,-400.0,0.00035616,14]
[377621893,1754463048807,-400.0,0.00035616,14]
[377621894,1754463048816,-2509.05,0.00035616,14]
[377621895,1754463048825,-866.81,0.00035616,14]
[377621896,1754463048837,-400.0,0.00035616,14]
[377621897,1754463048845,-442.38,0.00035616,14]
[377621898,1754463048854,-1442.65,0.00035616,14]
[377621899,1754463048862,-400.0,0.00035616,14]
[377621900,1754463048870,-1917.97,0.00035616,14]
[377621901,1754463048879,-605.89,0.00035616,14]
[377621902,1754463048887,-400.0,0.00035616,14]
[377621903,1754463048895,-728.43,0.00035616,14]
[377621904,1754463048902,-400.0,0.00035616,14]
[377621905,1754463048911,-400.0,0.00035616,14]
[377621906,1754463048920,-400.0,0.00035616,14]
[377621907,1754463048929,-400.0,0.00035616,14]
[377621908,1754463048939,-2450.08,0.00035616,14]
[377621909,1754463048948,-400.0,0.00035616,14]
[377621910,1754463048958,-400.0,0.00035616,14]
[377621911,1754463048968,-400.0,0.00035616,14]
[377621912,1754463048978,-400.0,0.00035616,14]
[377621913,1754463048988,-400.0,0.00035616,14]
[377621914,1754463048999,-400.0,0.00035616,14]
[377621915,1754463049009,-400.0,0.00035616,14]
[377621916,1754463049018,-766.76,0.00035616,14]
[377621917,1754463049028,-1206.23,0.00035616,14]
[377621918,1754463049038,-400.0,0.00035616,14]
[377621919,1754463049047,-970.83,0.00035616,14]
[377621920,1754463049057,-400.0,0.00035616,14]
[377621921,1754463049067,-400.0,0.00035616,14]
[377621922,1754463049077,-400.0,0.00035616,14]
[377621923,1754463049086,-1785.82,0.00035616,14]
[377621924,1754463049096,-400.0,0.00035616,14]
[377621925,1754463049106,-988.11,0.00035616,14]
[377621926,1754463049116,-1438.73,0.00035616,14]
[377621927,1754463049126,-2096.44,0.00035616,14]
[377621928,1754463049137,-1468.82,0.00035616,14]
[377621929,1754463049147,-400.0,0.00035616,14]
[377621930,1754463049156,-400.0,0.00035616,14]
[377621931,1754463049166,-492.83,0.00035616,14]
[377621932,1754463049175,-500.0,0.00035616,14]
[377621933,1754463049185,-500.0,0.00035616,14]
[377621934,1754463049195,-500.0,0.00035616,14]
[377621935,1754463049205,-405.82,0.00035616,14]
[377621936,1754463049215,-726.27,0.00035616,14]
[377621937,1754463049225,-400.0,0.00035616,14]
[377621938,1754463049235,-500.0,0.00035616,14]
[377621939,1754463049245,-400.0,0.00035616,14]
[377621940,1754463049255,-400.0,0.00035616,14]
[377621941,1754463049265,-500.0,0.00035616,14]
[377621942,1754463049275,-500.0,0.00035616,14]
[377621943,1754463049284,-500.0,0.00035616,14]
[377621944,1754463049294,-1771.27,0.00035616,14]
[377621945,1754463049304,-500.0,0.00035616,14]
[377621946,1754463049313,-500.0,0.00035616,14]
[377621947,1754463049323,-400.0,0.00035616,14]
[377621948,1754463049333,-446.72082124,0.00035616,14]
[377621949,1754463049343,-163.150273,0.00035616,14]
[377621950,1754463049353,-1850.66,0.00035616,14]
[377621951,1754463049363,-1790.46,0.00035616,14]
[377621952,1754463049373,-425.36,0.00035616,14]
[377621953,1754463049382,-598.33,0.00035616,14]
[377621954,1754463049393,-782.66,0.00035616,14]
[377621955,1754463049403,-400.0,0.00035616,14]
[377621956,1754463049413,-400.0,0.00035616,14]
[377621957,1754463049423,-400.0,0.00035616,14]
[377621958,1754463049433,-151.0,0.00035616,7]
[377621959,1754463049442,-606.46,0.00035616,14]
[377621960,1754463049453,-400.0,0.00035616,14]
[377621961,1754463049463,-400.0,0.00035616,14]
[377621962,1754463049473,-3373.45,0.00035616,14]
[377621963,1754463049483,-1806.19,0.00035616,14]
[377621964,1754463049492,-400.0,0.00035616,14]
[377621965,1754463049502,-400.0,0.00035616,14]
[377621966,1754463049511,-151.0,0.00035616,7]
[377621967,1754463049521,-760.86,0.00035616,14]
[377621968,1754463049530,-154.264953,0.00035616,7]
[377621969,1754463049539,-400.0,0.00035616,14]
[377621970,1754463049549,-400.0,0.00035616,14]
[377621971,1754463049559,-1669.66,0.00035616,14]
[377621972,1754463049568,-473.56,0.00035616,14]
[377621973,1754463049578,-400.0,0.00035616,14]
[377621974,1754463049588,-400.0,0.00035616,14]
[377621975,1754463049598,-1216.16,0.00035616,14]
[377621976,1754463049607,-678.69,0.00035616,14]
[377621977,1754463049617,-243.385021,0.00035616,14]
[377621978,1754463049627,-1073.41,0.00035616,14]
[377621979,1754463049637,-512.20116664,0.00035616,14]
[377621980,1754463049647,-1000.45,0.00035616,14]
[377621981,1754463049657,-400.0,0.00035616,14]
[377621982,1754463049667,-400.0,0.00035616,14]
[377621983,1754463049677,-229.92710688,0.00035616,14]
[377621984,1754463049687,-459.29,0.00035616,14]
[377621985,1754463049697,-400.0,0.00035616,14]
[377621986,1754463049707,-159.739356,0.00035616,14]
[377621987,1754463049717,-400.0,0.00035616,14]
[377621988,1754463049726,-610.27,0.00035616,14]
[377621989,1754463049736,-400.0,0.00035616,120]
[377621990,1754463049747,-1967.24,0.00035616,14]
[377621991,1754463049756,-1774.23,0.00035616,14]
[377621992,1754463049767,-400.0,0.00035616,14]
[377621993,1754463049780,-797.74,0.00035616,14]
[377621994,1754463049790,-400.0,0.00035616,14]
[377621995,1754463049800,-1554.56,0.00035616,14]
[377621996,1754463049809,-151.0,0.00035616,7]
[377621997,1754463049820,-151.0,0.00035616,7]
[377621998,1754463049830,-400.0,0.00035616,14]
[377621999,1754463049840,-400.0,0.00035616,14]
[377622000,1754463049851,-400.0,0.00035616,14]
[377622001,1754463049861,-400.0,0.00035616,14]
[377622002,1754463049870,-3178.84,0.00035616,14]
[377622003,1754463049880,-1315.35,0.00035616,14]
[377622004,1754463049889,-400.0,0.00035616,14]
[377622005,1754463049899,-400.0,0.00035616,14]
[377622006,1754463049909,-400.0,0.00035616,14]
[377622007,1754463049919,-400.0,0.00035616,14]
[377622008,1754463049929,-400.0,0.00035616,14]
[377622009,1754463049938,-2375.54,0.00035616,14]
[377622010,1754463049948,-1260.52,0.00035616,14]
[377622011,1754463049957,-876.76,0.00035616,14]
[377622012,1754463049968,-615.89,0.00035616,14]
[377622013,1754463049977,-521.64804328,0.00035616,14]
[377622014,1754463049987,-547.69,0.00035616,14]
[377622015,1754463049997,-1983.09,0.00035616,14]
[377622016,1754463050007,-575.39,0.00035616,14]
[377622017,1754463050017,-2140.36,0.00035616,14]
[377622018,1754463050027,-924.71,0.00035616,14]
[377622019,1754463050038,-151.0,0.00035616,7]
[377622020,1754463050048,-151.0,0.00035616,7]
[377622021,1754463050058,-151.0,0.00035616,7]
[377622022,1754463050068,-585.24,0.00035616,14]
[377622023,1754463050078,-400.0,0.00035616,14]
[377622024,1754463050088,-400.0,0.00035616,14]
[377622025,1754463050098,-400.0,0.00035616,14]
[377622026,1754463050107,-500.0,0.00035616,14]
[377622027,1754463050117,-1898.83,0.00035616,14]
[377622028,1754463050127,-500.0,0.00035616,14]
[377622029,1754463050138,-2788.12,0.00035616,14]
[377622030,1754463050148,-462.22832296,0.00035616,14]
[377622031,1754463050158,-400.0,0.00035616,14]
[377622032,1754463050167,-400.0,0.00035616,14]
[377622033,1754463050177,-400.0,0.00035616,14]
[377622034,1754463050187,-400.0,0.00035616,14]
[377622035,1754463050197,-2084.77,0.00035616,14]
[377622036,1754463050207,-400.0,0.00035616,14]
[377622037,1754463050216,-400.0,0.00035616,14]
[377622038,1754463050226,-1459.36,0.00035616,14]
[377622039,1754463050236,-941.33,0.00035616,14]
[377622040,1754463050245,-401.35314624,0.00035616,14]
[377622041,1754463050255,-1432.93,0.00035616,14]
[377622042,1754463050264,-2479.85,0.00035616,14]
[377622043,1754463050274,-705.21,0.00035616,14]
[377622044,1754463050284,-400.0,0.00035616,14]
[377622045,1754463050293,-2180.97,0.00035616,14]
[377622046,1754463050303,-401.54683616,0.00035616,14]
[377622047,1754463050312,-1344.13,0.00035616,14]
[377622048,1754463050322,-400.0,0.00035616,14]
[377622049,1754463050332,-990.81,0.00035616,14]
[377622050,1754463050342,-400.0,0.00035616,14]
[377622051,1754463050352,-2040.3,0.00035616,14]
[377622052,1754463050362,-476.52,0.00035616,14]
[377622053,1754463050372,-400.0,0.00035616,14]
[377622054,1754463050382,-400.0,0.00035616,14]
[377622055,1754463050391,-400.0,0.00035616,14]
[377622056,1754463050402,-151.0,0.00035616,7]
[377622057,1754463050411,-151.0,0.00035616,7]
[377622058,1754463050422,-151.0,0.00035616,7]
[377622059,1754463050432,-219.579289,0.00035616,14]
[377622060,1754463050442,-400.0,0.00035616,14]
[377622061,1754463050452,-1777.34,0.00035616,14]
[377622062,1754463050462,-1015.04,0.00035616,14]
[377622063,1754463050472,-662.91,0.00035616,14]
[377622064,1754463050483,-400.0,0.00035616,14]
[377622065,1754463050493,-400.0,0.00035616,14]
[377622066,1754463050503,-400.0,0.00035616,14]
[377622067,1754463050513,-400.0,0.00035616,14]
[377622068,1754463050523,-400.0,0.00035616,14]
[377622069,1754463050533,-857.04,0.00035616,14]
[377622070,1754463050543,-1453.83,0.00035616,14]
[377622071,1754463050553,-1441.07,0.00035616,14]
[377622072,1754463050564,-400.0,0.00035616,14]
[377622073,1754463050575,-400.0,0.00035616,14]
[377622074,1754463050585,-400.0,0.00035616,14]
[377622075,1754463050596,-560.53,0.00035616,14]
[377622076,1754463050607,-158.438387,0.00035616,14]
[377622077,1754463050617,-400.0,0.00035616,14]
[377622078,1754463050628,-1094.18,0.00035616,14]
[377622079,1754463050637,-400.0,0.00035616,14]
[377622080,1754463050647,-459.1,0.00035616,14]
[377622081,1754463050657,-1810.02,0.00035616,14]
[377622082,1754463050667,-752.42,0.00035616,14]
[377622083,1754463050677,-1126.38,0.00035616,14]
[377622084,1754463050687,-1029.88,0.00035616,14]
[377622085,1754463050697,-400.0,0.00035616,14]
[377622086,1754463050707,-599.01,0.00035616,14]
[377622087,1754463050718,-400.0,0.00035616,14]
[377622088,1754463050727,-3423.08,0.00035616,14]
[377622089,1754463050737,-400.0,0.00035616,14]
[377622090,1754463050747,-400.0,0.00035616,14]
[377622091,1754463050757,-186.764188,0.00035616,14]
[377622092,1754463050767,-400.0,0.00035616,14]
[377622093,1754463050780,-400.0,0.00035616,14]
[377622094,1754463050790,-1692.67,0.00035616,14]
[377622095,1754463050800,-405.88,0.00035616,14]
[377622096,1754463050810,-400.0,0.00035616,14]
[377622097,1754463050819,-400.0,0.00035616,14]
[377622098,1754463050829,-426.78,0.00035616,14]
[377622099,1754463050839,-1829.58,0.00035616,14]
[377622100,1754463050849,-1249.04,0.00035616,14]
[377622101,1754463050859,-356.83583252,0.00035616,14]
[377622102,1754463050869,-400.0,0.00035616,14]
[377622103,1754463050879,-172.62175252,0.00035616,14]
[377622104,1754463050888,-1345.09,0.00035616,14]
[377622105,1754463050899,-1132.98,0.00035616,14]
[377622106,1754463050908,-400.0,0.00035616,14]
[377622107,1754463050918,-400.0,0.00035616,14]
[377622108,1754463050929,-513.57,0.00035616,14]
[377622109,1754463050939,-547.47,0.00035616,14]
[377622110,1754463050949,-631.39,0.00035616,14]
[377622111,1754463050959,-400.0,0.00035616,14]
[377622112,1754463050969,-400.0,0.00035616,14]
[377622113,1754463050979,-170.892733,0.00035616,14]
[377622114,1754463050989,-400.0,0.00035616,14]
[377622115,1754463050999,-1611.26,0.00035616,14]
[377622116,1754463051009,-740.58,0.00035616,14]
[377622117,1754463051019,-548.67,0.00035616,14]
[377622118,1754463051028,-400.0,0.00035616,14]
[377622119,1754463051038,-2075.56,0.00035616,14]
[377622120,1754463051048,-205.350205,0.00035616,7]
[377622121,1754463051058,-1760.54,0.00035616,14]
[377622122,1754463051068,-445.08,0.00035616,14]
[377622123,1754463051078,-400.0,0.00035616,14]
[377622124,1754463051088,-400.0,0.00035616,14]
[377622125,1754463051099,-400.0,0.00035616,14]
[377622126,1754463051108,-400.0,0.00035616,14]
[377622127,1754463051118,-400.0,0.00035616,14]
[377622128,1754463051128,-1819.03,0.00035616,14]
[377622129,1754463051138,-505.01,0.00035616,14]
[377622130,1754463051498,-1746.01,0.00035616,14]
[377622131,1754463051508,-154.756901,0.00035616,7]
[377622132,1754463051518,-400.0,0.00035616,14]
[377622133,1754463051527,-2211.93,0.00035616,14]
[377622134,1754463051537,-400.0,0.00035616,14]
[377622135,1754463051546,-400.0,0.00035616,14]
[377622136,1754463051556,-927.94,0.00035616,14]
[377622137,1754463051565,-2563.43,0.00035616,14]
[377622138,1754463051576,-400.0,0.00035616,14]
[377622139,1754463051585,-400.0,0.00035616,14]
[377622140,1754463051595,-505.87431655,0.00035616,14]
[377622141,1754463051604,-1310.67,0.00035616,14]
[377622142,1754463051614,-500.0,0.00035616,14]
[377622143,1754463051623,-400.0,0.00035616,14]
[377622144,1754463051633,-400.0,0.00035616,14]
[377622145,1754463051643,-1001.48,0.00035616,14]
[377622146,1754463051653,-400.0,0.00035616,14]
[377622147,1754463051663,-400.0,0.00035616,14]
[377622148,1754463051671,-500.0,0.00035616,14]
[377622149,1754463051681,-152.270092,0.00035616,7]
[377622150,1754463051691,-500.0,0.00035616,14]
[377622151,1754463051710,-500.0,0.00035616,14]
[377622152,1754463051724,-500.0,0.00035616,14]
[377622153,1754463051734,-500.0,0.00035616,14]
[377622154,1754463051744,-400.0,0.00035616,14]
[377622155,1754463051753,-1878.95,0.00035616,14]
[377622156,1754463051762,-500.0,0.00035616,14]
[377622157,1754463051774,-642.03,0.00035616,14]
[377622158,1754463051784,-400.0,0.00035616,14]
[377622159,1754463051795,-4392.71,0.00035616,14]
[377622160,1754463051806,-152.199088,0.00035616,7]
[377622161,1754463051815,-400.0,0.00035616,14]
[377622162,1754463051827,-400.0,0.00035616,14]
[377622163,1754463051837,-535.43,0.00035616,14]
[377622164,1754463051848,-196.87726609,0.00035616,14]
[377622165,1754463051858,-400.0,0.00035616,14]
[377622166,1754463051868,-1422.63,0.00035616,14]
[377622167,1754463051879,-711.34,0.00035616,14]
[377622168,1754463051894,-713.78,0.00035616,14]
[377622169,1754463051906,-587.04,0.00035616,14]
[377622170,1754463051917,-1566.78,0.00035616,14]
[377622171,1754463051926,-400.0,0.00035616,14]
[377622172,1754463051938,-400.0,0.00035616,14]
[377622173,1754463051959,-1800.72,0.00035616,14]
[377622174,1754463051969,-1380.61,0.00035616,14]
[377622175,1754463051980,-400.0,0.00035616,14]
[377622176,1754463051990,-922.81,0.00035616,14]
[377622177,1754463052000,-777.48,0.00035616,14]
[377622178,1754463052010,-400.0,0.00035616,14]
[377622179,1754463052019,-400.0,0.00035616,14]
[377622180,1754463052029,-1923.27,0.00035616,14]
[377622181,1754463052038,-400.0,0.00035616,14]
[377622182,1754463052047,-400.0,0.00035616,14]
[377622183,1754463052057,-500.0,0.00035616,10]
[377622184,1754463052067,-1928.99,0.00035616,14]
[377622185,1754463052076,-639.82,0.00035616,14]
[377622186,1754463052086,-500.0,0.00035616,10]
[377622187,1754463052095,-1212.95,0.00035616,14]
[377622188,1754463052105,-1840.81,0.00035616,14]
[377622189,1754463052115,-400.0,0.00035616,14]
[377622190,1754463052124,-400.0,0.00035616,14]
[377622191,1754463052133,-1081.93,0.00035616,14]
[377622192,1754463052145,-905.9,0.00035616,14]
[377622193,1754463052156,-400.0,0.00035616,14]
[377622194,1754463052166,-400.0,0.00035616,14]
[377622195,1754463052175,-912.07,0.00035616,14]
[377622196,1754463052184,-1644.75,0.00035616,14]
[377622197,1754463052194,-400.0,0.00035616,14]
[377622198,1754463052203,-295.885296,0.00035616,14]
[377622199,1754463052212,-400.0,0.00035616,14]
[377622200,1754463052222,-400.0,0.00035616,14]
[377622201,1754463052233,-3362.38,0.00035616,14]
[377622202,1754463052243,-151.0,0.00035616,7]
[377622203,1754463052253,-157.101087,0.00035616,7]
[377622204,1754463052263,-1060.2,0.00035616,14]
[377622205,1754463052272,-400.0,0.00035616,14]
[377622206,1754463052282,-400.0,0.00035616,14]
[377622207,1754463052291,-400.0,0.00035616,14]
[377622208,1754463052301,-553.87,0.00035616,14]
[377622209,1754463052311,-504.98,0.00035616,14]
[377622210,1754463052320,-151.0,0.00035616,7]
[377622211,1754463052330,-400.0,0.00035616,14]
[377622212,1754463052339,-2555.73,0.00035616,14]
[377622213,1754463052349,-151.0,0.00035616,7]
[377622214,1754463052359,-203.44032,0.00035616,14]
[377622215,1754463052369,-400.0,0.00035616,14]
[377622216,1754463052379,-1385.49,0.00035616,14]
[377622217,1754463052388,-400.0,0.00035616,14]
[377622218,1754463052398,-2085.53,0.00035616,14]
[377622219,1754463052409,-400.0,0.00035616,14]
[377622220,1754463052419,-1362.78,0.00035616,14]
[377622221,1754463052429,-400.0,0.00035616,14]
[377622222,1754463052439,-400.0,0.00035616,14]
[377622223,1754463052448,-428.64,0.00035616,14]
[377622224,1754463052458,-400.0,0.00035616,14]
[377622225,1754463052468,-1713.72,0.00035616,14]
[377622226,1754463052478,-994.48,0.00035616,14]
[377622227,1754463052488,-400.0,0.00035616,14]
[377622228,1754463052498,-400.0,0.00035616,14]
[377622229,1754463052508,-1802.19,0.00035616,14]
[377622230,1754463052517,-1703.82,0.00035616,14]
[377622231,1754463052527,-400.60710576,0.00035616,14]
[377622232,1754463052537,-763.83,0.00035616,14]
[377622233,1754463052546,-2601.36,0.00035616,14]
[377622234,1754463052556,-400.0,0.00035616,14]
[377622235,1754463052566,-3494.4,0.00035616,14]
[377622236,1754463052575,-400.0,0.00035616,14]
[377622237,1754463052585,-2902.08,0.00035616,14]
[377622238,1754463052595,-400.0,0.00035616,14]
[377622239,1754463052604,-2500.17,0.00035616,14]
[377622240,1754463052614,-1981.99,0.00035616,14]
[377622241,1754463052623,-581.86,0.00035616,14]
[377622242,1754463052633,-400.0,0.00035616,14]
[377622243,1754463052642,-400.0,0.00035616,14]
[377622244,1754463052650,-2421.74,0.00035616,14]
[377622245,1754463052660,-160.611332,0.00035616,7]
[377622246,1754463052669,-888.84,0.00035616,14]
[377622247,1754463052678,-400.0,0.00035616,14]
[377622248,1754463052688,-400.0,0.00035616,14]
[377622249,1754463052698,-510.52,0.00035616,14]
[377622250,1754463052708,-400.0,0.00035616,14]
[377622251,1754463052717,-454.8,0.00035616,14]
[377622252,1754463052727,-993.68,0.00035616,14]
[377622253,1754463052736,-400.0,0.00035616,14]
[377622254,1754463052745,-2754.05,0.00035616,14]
[377622255,1754463052755,-400.0,0.00035616,14]
[377622256,1754463052764,-2721.87,0.00035616,14]
[377622257,1754463052778,-1832.85,0.00035616,14]
[377622258,1754463052787,-468.65,0.00035616,14]
[377622259,1754463052797,-2640.74,0.00035616,14]
[377622260,1754463052807,-400.0,0.00035616,14]
[377622261,1754463052816,-1847.08,0.00035616,14]
[377622262,1754463052827,-592.06,0.00035616,14]
[377622263,1754463052837,-592.06,0.00035616,14]
[377622264,1754463052846,-1224.93,0.00035616,14]
[377622265,1754463052855,-592.06,0.00035616,14]
[377622266,1754463052865,-592.06,0.00035616,14]
[377622267,1754463052874,-592.06,0.00035616,14]
[377622268,1754463052883,-400.0,0.00035616,14]
[377622269,1754463052894,-592.06,0.00035616,14]
[377622270,1754463052904,-592.06,0.00035616,14]
[377622271,1754463052914,-1000.0,0.00035616,30]
[377622272,1754463052924,-414.17,0.00035616,14]
[377622273,1754463052933,-400.0,0.00035616,14]
[377622274,1754463052943,-592.06,0.00035616,14]
[377622275,1754463052953,-592.06,0.00035616,14]
[377622276,1754463052962,-400.0,0.00035616,14]
[377622277,1754463052972,-500.0,0.00035616,30]
[377622278,1754463052980,-400.0,0.00035616,14]
[377622279,1754463052989,-400.0,0.00035616,14]
[377622280,1754463052999,-1711.21,0.00035616,14]
[377622281,1754463053008,-400.0,0.00035616,14]
[377622282,1754463053018,-1631.03,0.00035616,14]
[377622283,1754463053028,-763.49,0.00035616,14]
[377622284,1754463053037,-400.0,0.00035616,14]
[377622285,1754463053046,-2469.61,0.00035616,14]
[377622286,1754463053054,-759.98,0.00035616,14]
[377622287,1754463053064,-400.0,0.00035616,14]
[377622288,1754463053074,-844.85,0.00035616,14]
[377622289,1754463053083,-400.0,0.00035616,14]
[377622290,1754463053093,-1355.42,0.00035616,14]
[377622291,1754463053103,-151.0,0.00035616,7]
[377622292,1754463053112,-2281.55,0.00035616,14]
[377622293,1754463053122,-2015.83,0.00035616,14]
[377622294,1754463053132,-400.0,0.00035616,14]
[377622295,1754463053141,-1559.99,0.00035616,14]
[377622296,1754463053151,-1642.59,0.00035616,14]
[377622297,1754463053162,-2443.0,0.00035616,14]
[377622298,1754463053171,-400.0,0.00035616,14]